bitfinex/quotes_BTCUSD_20250522
["timestamp","ask_amount","ask_price","bid_price","bid_amount"]
[1747921117383,0.32138346,111030.0,111020.0,0.87464]
[1747921117824,0.32138346,111030.0,111020.0,0.87164]
[1747921118044,0.32138346,111030.0,111020.0,0.87464]
[1747921118483,0.32138346,111030.0,111020.0,0.87164]
[1747921118753,0.32138346,111030.0,111020.0,0.87364]
[1747921119206,0.1891379,111030.0,111020.0,1.21364]
[1747921119431,0.1891379,111030.0,111020.0,4.943944]
[1747921119861,0.1891379,111030.0,111020.0,1.21364]
[1747921120084,0.1891379,111030.0,111020.0,1.06914]
[1747921120298,0.1891379,111030.0,111020.0,1.25829502]
[1747921120522,0.03602482,111030.0,111020.0,1.27630889]
[1747921120696,0.03602482,111030.0,111020.0,1.27630906]
[1747921120943,0.21615631,111030.0,111020.0,1.26730208]
[1747921121130,0.19814423,111030.0,111020.0,1.06914]
[1747921121625,0.19814423,111030.0,111020.0,0.004]
[1747921121842,0.19814423,111030.0,111020.0,1.06782]
[1747921122502,0.18913798,111030.0,111020.0,1.06782]
[1747921122725,0.00900625,111030.0,111020.0,1.26598192]
[1747921122950,0.01801225,111030.0,111020.0,1.61498873]
[1747921123179,0.18012676,111050.0,111030.0,0.53814374]
[1747921123397,0.21603093,111040.0,111030.0,0.52913806]
[1747921123619,0.20713173,111040.0,111030.0,4.5473748]
[1747921123841,0.01801038,111040.0,111030.0,4.27745423]
[1747921124063,0.1891379,111030.0,111020.0,0.344]
[1747921124278,0.1891379,111030.0,111020.0,0.99248]
[1747921124501,0.1891379,111030.0,111020.0,3.6699]
[1747921125153,0.19814423,111030.0,111020.0,1.2604]
[1747921125366,0.19814423,111030.0,111020.0,1.4451]
[1747921126028,0.19814423,111030.0,111020.0,0.65398]
[1747921126302,0.33288979,111030.0,111020.0,1.5237]
[1747921126755,4.34814423,111030.0,111020.0,5.22185172]
[1747921126974,4.34814423,111030.0,111020.0,5.23085894]
[1747921127204,4.15,111030.0,111020.0,5.68742534]
[1747921127389,4.35714998,111030.0,111020.0,5.6284187]
[1747921127623,4.34814406,111030.0,111020.0,5.60940458]
[1747921127831,4.168012,111030.0,111020.0,5.62741845]
[1747921128062,4.18602457,111030.0,111020.0,5.60940458]
[1747921128275,4.34814439,111030.0,111020.0,3.7582005]
[1747921128496,4.15900616,111030.0,111020.0,3.76720764]
[1747921128725,4.15,111030.0,111020.0,3.80076236]
[1747921128938,4.17701817,111030.0,111020.0,3.80076236]
[1747921129147,4.16801192,111030.0,111020.0,3.80076236]
[1747921129353,4.15,111030.0,111020.0,3.80076236]
[1747921129571,4.159006,111030.0,111020.0,3.80076236]
[1747921129790,4.16801208,111030.0,111020.0,3.80076236]
[1747921130156,4.16801208,111030.0,111020.0,3.85076236]
[1747921130361,4.159006,111030.0,111020.0,3.85076236]
[1747921130570,4.16801216,111030.0,111020.0,3.83622151]
[1747921130797,4.17701849,111030.0,111020.0,3.83622151]
[1747921130961,4.15900592,111030.0,111020.0,3.83622151]
[1747921131164,4.17701849,111030.0,111020.0,3.83622151]
[1747921131407,4.16801208,111030.0,111020.0,3.83622151]
[1747921131652,4.15900584,111030.0,111020.0,3.83622151]
[1747921132021,4.15,111030.0,111020.0,3.83622151]
[1747921132229,4.15,111030.0,111020.0,3.85076236]
[1747921133221,3.03722719,111030.0,111020.0,3.89606236]
[1747921133433,2.69565328,111030.0,111020.0,3.91606236]
[1747921133659,2.69565328,111030.0,111020.0,3.90606236]
[1747921133917,1.98957709,111030.0,111020.0,4.28921569]
[1747921134137,1.2194268,111030.0,111020.0,4.24391569]
[1747921134370,1.16724391,111030.0,111020.0,4.26991269]
[1747921134778,1.16004627,111030.0,111020.0,4.20175936]
[1747921134997,1.16004627,111030.0,111020.0,2.98100236]
[1747921135212,1.16004627,111030.0,111020.0,3.84584236]
[1747921135441,1.16104627,111030.0,111020.0,3.85084236]
[1747921135851,1.16104627,111030.0,111020.0,3.85088236]
[1747921136063,1.16104627,111030.0,111020.0,2.99604236]
[1747921136266,1.16104627,111030.0,111020.0,2.77464865]
[1747921136493,1.16104627,111030.0,111020.0,3.49888236]
[1747921136709,1.16104627,111030.0,111020.0,3.50888236]
[1747921136922,0.04827346,111030.0,111020.0,3.50888236]
[1747921137810,0.04827346,111030.0,111020.0,2.62946151]
[1747921138048,0.05727954,111030.0,111020.0,3.47521445]
[1747921138290,0.0662853,111030.0,111020.0,3.47521445]
[1747921138737,0.04827346,111030.0,111020.0,3.81521445]
[1747921139179,0.04827346,111030.0,111020.0,3.8297553]
[1747921140082,0.001,111030.0,111020.0,2.5863953]
[1747921140331,0.22154415,111030.0,111020.0,3.33812556]
[1747921140563,0.045,111030.0,111020.0,3.80616764]
[1747921140769,0.25215023,111030.0,111020.0,3.79716058]
[1747921140980,0.07201874,111030.0,111020.0,3.81517445]
[1747921141193,0.08102499,111030.0,111020.0,3.81517445]
[1747921141415,0.07201857,111030.0,111020.0,3.81517445]
[1747921141910,0.045,111030.0,111020.0,3.81517445]
[1747921142131,0.04041192,111030.0,111020.0,3.81017445]
[1747921142349,0.05842449,111030.0,111020.0,3.81017445]
[1747921142638,0.05842449,111030.0,111020.0,3.81217445]
[1747921142780,0.04941808,111030.0,111020.0,2.56885445]
[1747921143012,0.24284406,111030.0,111020.0,1.93214]
[1747921143225,0.31499739,111030.0,111020.0,1.2964]
[1747921143426,0.31499739,111030.0,111020.0,1.2464]
[1747921143630,0.24284406,111030.0,111020.0,1.2464]
[1747921143908,0.0447,111030.0,111020.0,5.18387289]
[1747921144122,0.06271192,111030.0,111020.0,5.52387289]
[1747921144370,0.07171808,111030.0,111020.0,5.52187289]
[1747921144577,0.08072449,111030.0,111020.0,5.52187289]
[1747921144806,0.25185014,111030.0,111020.0,4.072344]
[1747921145025,0.24284406,111030.0,111020.0,1.5854]
[1747921145239,0.40454295,111030.0,111020.0,0.63692]
[1747921145483,0.85555393,111030.0,111020.0,0.00464]
[1747921145708,0.23485494,111020.0,111010.0,0.5]
[1747921145928,0.77541148,111020.0,111010.0,0.50015222]
[1747921146575,0.77541148,111020.0,111010.0,0.47775222]
[1747921146844,0.3244005,111020.0,111010.0,0.47775222]
[1747921147074,1.12995233,111020.0,111010.0,0.43135222]
[1747921147942,1.13295233,111020.0,111010.0,0.43135222]
[1747921148185,0.24881282,111010.0,111000.0,0.00204]
[1747921148406,1.58038034,111010.0,111000.0,0.00204]
[1747921148630,0.69682645,110990.0,110980.0,0.00204]
[1747921148851,0.26039205,110970.0,110960.0,0.002]
[1747921149084,0.2433048,110940.0,110930.0,4e-05]
[1747921149298,0.78386134,110940.0,110930.0,0.26996]
[1747921149560,0.78386134,110940.0,110930.0,0.2704656]
[1747921149990,1.2279237,110940.0,110930.0,0.0005456]
[1747921150208,0.25104925,110930.0,110920.0,0.002]
[1747921150433,0.79160579,110930.0,110920.0,0.00215202]
[1747921150710,0.34059481,110930.0,110920.0,0.00215202]
[1747921150911,0.34059481,110930.0,110920.0,0.58715202]
[1747921150912,0.30285396,110930.0,110920.0,0.58715202]
[1747921151137,0.01802898,110930.0,110920.0,4.35196501]
[1747921151342,0.19830521,110940.0,110930.0,0.52930848]
[1747921151559,0.0180267,110940.0,110930.0,4.28665549]
[1747921151770,0.18927411,110950.0,110940.0,0.18929133]
[1747921152020,0.02703773,110950.0,110940.0,4.53856888]
[1747921152236,0.18022687,110980.0,110960.0,0.0180241]
[1747921152443,0.00901006,110980.0,110970.0,5.52148623]
[1747921152652,0.21625386,110980.0,110970.0,5.50346425]
[1747921152842,0.19823366,110980.0,110970.0,1.75812]
[1747921153280,0.20724364,110980.0,110970.0,1.94736025]
[1747921153404,0.02753816,110980.0,110970.0,1.95637136]
[1747921153615,0.20775081,110980.0,110970.0,1.95637136]
[1747921153808,0.0185268,110980.0,110970.0,1.96538223]
[1747921154075,0.03654781,110980.0,110970.0,1.96538239]
[1747921154279,0.0365474,110980.0,110970.0,1.97439326]
[1747921154466,0.0365474,110980.0,110970.0,2.08773882]
[1747921154467,0.00050676,110980.0,110970.0,2.08773882]
[1747921154672,0.00050676,110980.0,110970.0,2.12447967]
[1747921155128,0.00250676,110980.0,110970.0,2.12447967]
[1747921155299,0.00050676,110980.0,110970.0,1.93773787]
[1747921155548,0.00050676,110980.0,110970.0,2.25773787]
[1747921155776,0.00050676,110980.0,110970.0,2.25873787]
[1747921155984,0.002,110990.0,110980.0,0.62698441]
[1747921156148,0.002,110990.0,110980.0,4.44683397]
[1747921156731,0.002,111010.0,111000.0,0.58174707]
[1747921157041,0.002,111010.0,111000.0,5.30199663]
[1747921158070,0.003,111030.0,111020.0,0.58420974]
[1747921158278,0.21030197,111030.0,111020.0,4.76131249]
[1747921158447,0.21030197,111030.0,111020.0,5.1184478]
[1747921158654,0.21030197,111030.0,111020.0,2.56458556]
[1747921158867,0.01215799,111030.0,111020.0,2.53565502]
[1747921159132,0.00315199,111030.0,111020.0,2.54466183]
[1747921159258,0.00315199,111030.0,111020.0,2.55920268]
[1747921159700,0.00315199,111030.0,111020.0,2.58240268]
[1747921159914,0.00315199,111030.0,111020.0,2.60620268]
[1747921160569,0.00315199,111030.0,111020.0,2.60720268]
[1747921161208,0.00315199,111030.0,111020.0,2.62070398]
[1747921162705,0.00315199,111030.0,111020.0,2.57358398]
[1747921162904,0.00315199,111030.0,111020.0,2.29012268]
[1747921163118,0.03017073,111030.0,111020.0,1.33256796]
[1747921163346,0.00315199,111030.0,111020.0,2.16951328]
[1747921163564,0.20129605,111030.0,111020.0,1.98932556]
[1747921163783,0.00315199,111030.0,111020.0,2.24649445]
[1747921164011,0.00315199,111030.0,111020.0,2.58649445]
[1747921164213,0.01115783,111030.0,111020.0,2.58649445]
[1747921164442,0.02916983,111030.0,111020.0,2.58645445]
[1747921164700,0.03817656,111030.0,111020.0,2.59546151]
[1747921164929,0.00215199,111030.0,111020.0,2.61900917]
[1747921165138,0.002,111050.0,111020.0,2.64117413]
[1747921165347,0.002,111050.0,111040.0,0.68511798]
[1747921165572,0.002,111050.0,111040.0,4.70694198]
[1747921165784,0.002,111050.0,111040.0,4.71694198]
[1747921165999,0.002,111050.0,111040.0,4.70694198]
[1747921166215,0.002,111050.0,111040.0,4.73393798]
[1747921166649,0.002,111050.0,111040.0,4.7118034]
[1747921167095,0.002,111050.0,111040.0,5.0456034]
[1747921167735,0.002,111070.0,111060.0,0.59279427]
[1747921167959,0.00215219,111070.0,111060.0,5.01330468]
[1747921168404,0.00215219,111070.0,111060.0,5.03330468]
[1747921169259,0.00215219,111070.0,111060.0,4.44718468]
[1747921169471,0.00215219,111070.0,111060.0,5.30318468]
[1747921169710,0.00215219,111070.0,111060.0,5.30418468]
[1747921169925,0.00215219,111070.0,111060.0,5.01430468]
[1747921170136,0.00215219,111070.0,111060.0,5.60318468]
[1747921170375,0.00215219,111070.0,111060.0,5.29718468]
[1747921170582,0.00215219,111070.0,111060.0,5.60718468]
[1747921171223,0.00215219,111070.0,111060.0,5.59318468]
[1747921171432,0.00215219,111070.0,111060.0,5.58618468]
[1747921171639,0.00215219,111070.0,111060.0,5.59618468]
[1747921172079,0.00215219,111070.0,111060.0,5.60618468]
[1747921172756,0.00215219,111070.0,111060.0,5.33630468]
[1747921172987,0.00215219,111070.0,111060.0,5.60614468]
[1747921173206,0.00215219,111070.0,111060.0,4.44018468]
[1747921173423,0.00215219,111070.0,111060.0,5.29594468]
[1747921173647,0.00215219,111070.0,111060.0,5.60594468]
[1747921174502,0.00215219,111070.0,111060.0,4.37994383]
[1747921174707,0.00215219,111070.0,111060.0,5.22566383]
[1747921174902,0.00215219,111070.0,111060.0,5.25020468]
[1747921175768,0.00215219,111070.0,111060.0,5.30420468]
[1747921177436,0.00215219,111070.0,111060.0,5.03440468]
[1747921177622,0.00215219,111070.0,111060.0,5.27260468]
[1747921178080,0.00215219,111070.0,111060.0,5.61300468]
[1747921178620,0.00215219,111070.0,111060.0,5.63100568]
[1747921178820,0.00215219,111070.0,111060.0,5.56820568]
[1747921179423,0.00215219,111070.0,111060.0,5.18748568]
[1747921179665,0.00215219,111070.0,111060.0,4.82068568]
[1747921179904,0.00215219,111070.0,111060.0,5.64652568]
[1747921180091,0.00215219,111070.0,111060.0,5.65652568]
[1747921180497,0.002,111090.0,111080.0,0.56159783]
[1747921180666,0.002,111090.0,111080.0,4.38144739]
[1747921181265,0.002,111090.0,111080.0,4.39522382]
[1747921181600,0.02000236,111090.0,111080.0,4.39522382]
[1747921181779,0.002,111090.0,111080.0,4.05522382]
[1747921181954,0.0200022,111090.0,111080.0,4.05522382]
[1747921182168,0.20003704,111090.0,111080.0,4.0136764]
[1747921182441,0.05030284,111090.0,111080.0,4.02690654]
[1747921182593,0.01100114,111090.0,111080.0,4.29666654]
[1747921182799,0.01100138,111090.0,111080.0,4.29666654]
[1747921183017,0.23033737,111090.0,111080.0,1.78164556]
[1747921183229,0.25273737,111090.0,111080.0,2.14191041]
[1747921183440,0.25273737,111090.0,111080.0,0.2855]
[1747921183673,0.01800576,111070.0,111060.0,0.57572932]
[1747921183942,0.2198697,111070.0,111060.0,3.41374]
[1747921184162,0.25217254,111070.0,111060.0,3.61183078]
[1747921184375,0.25217303,111070.0,111060.0,1.70954]
[1747921184796,0.25217303,111070.0,111060.0,1.71154]
[1747921185027,0.25217303,111070.0,111060.0,1.9813]
[1747921185467,0.25217303,111070.0,111060.0,2.16138283]
[1747921185683,0.25217303,111070.0,111060.0,3.5194]
[1747921185900,0.25217303,111070.0,111060.0,1.6589]
[1747921186120,0.25217303,111070.0,111060.0,1.246]
[1747921186787,0.59217303,111070.0,111060.0,1.244]
[1747921187038,0.68171859,111070.0,111060.0,1.244]
[1747921187271,0.68171859,111070.0,111060.0,5.17239453]
[1747921187272,0.06610308,111070.0,111060.0,5.17239453]
[1747921187491,0.003,111070.0,111060.0,5.19040207]
[1747921187743,0.0300082,111070.0,111060.0,4.56609807]
[1747921187954,0.0300082,111070.0,111060.0,3.07639316]
[1747921188164,0.0300082,111070.0,111060.0,3.25647599]
[1747921188390,0.003,111070.0,111060.0,3.29249123]
[1747921188608,0.05100252,111090.0,111080.0,0.20705698]
[1747921188871,0.04200098,111090.0,111080.0,3.90775498]
[1747921189093,0.04200098,111090.0,111080.0,4.26710054]
[1747921189094,0.002,111090.0,111080.0,4.26710054]
[1747921189345,0.002,111090.0,111080.0,4.28164139]
[1747921189577,0.002,111090.0,111080.0,4.62164139]
[1747921190029,0.002,111110.0,111080.0,4.60833822]
[1747921190263,0.002,111130.0,111120.0,0.20698245]
[1747921190477,0.00215213,111130.0,111120.0,4.28156686]
[1747921190951,0.02014801,111130.0,111120.0,4.27256815]
[1747921191173,0.00215213,111130.0,111120.0,4.28156686]
[1747921191410,0.01115003,111130.0,111120.0,4.28156686]
[1747921191854,0.01115003,111130.0,111120.0,5.25584686]
[1747921192070,0.01415003,111130.0,111120.0,5.25522064]
[1747921192293,0.02314809,111130.0,111120.0,5.25522064]
[1747921192521,0.02314785,111130.0,111120.0,5.25522064]
[1747921193439,0.00515213,111130.0,111120.0,5.25522064]
[1747921193672,0.21792319,111150.0,111140.0,0.2069452]
[1747921193905,0.21792319,111150.0,111140.0,4.26694892]
[1747921194595,0.01999264,111150.0,111140.0,4.27594601]
[1747921194830,0.0109962,111150.0,111140.0,4.27594601]
[1747921195070,0.002,111170.0,111160.0,0.20690797]
[1747921195355,0.002,111170.0,111160.0,5.19117238]
[1747921195356,0.00215204,111170.0,111160.0,5.19117238]
[1747921195583,0.00215204,111170.0,111160.0,5.2160253]
[1747921195810,0.00215204,111170.0,111160.0,5.19117238]
[1747921196953,0.00215204,111170.0,111160.0,4.92145238]
[1747921197162,0.00215204,111170.0,111160.0,5.19117238]
[1747921198683,0.00215204,111170.0,111160.0,5.56617238]
[1747921199949,0.00215204,111170.0,111160.0,4.68432562]
[1747921200148,0.00215204,111170.0,111160.0,4.33715153]
[1747921200356,0.18205669,111170.0,111160.0,2.37134556]
[1747921200581,0.26364658,111170.0,111160.0,1.74566]
[1747921200789,0.26364658,111170.0,111160.0,1.61066]
[1747921201226,0.26364658,111170.0,111160.0,1.61366]
[1747921201464,0.07474662,111170.0,111160.0,2.6544363]
[1747921201664,0.00215204,111170.0,111160.0,2.76197353]
[1747921201878,0.20904164,111170.0,111160.0,2.55706556]
[1747921202087,0.2327469,111170.0,111160.0,1.54662]
[1747921202308,0.2327469,111170.0,111160.0,1.33802]
[1747921202309,0.2653469,111170.0,111160.0,1.33802]
[1747921202521,0.2653469,111170.0,111160.0,1.22932]
[1747921202758,0.2653469,111170.0,111160.0,1.22732]
[1747921202994,0.24174148,111170.0,111160.0,5.12593033]
[1747921203199,0.01114662,111170.0,111160.0,5.22447136]
[1747921203404,0.02014144,111170.0,111160.0,5.22447136]
[1747921203627,0.02913651,111170.0,111160.0,5.22447136]
[1747921203827,0.01114662,111170.0,111160.0,5.22447136]
[1747921204035,0.00215204,111170.0,111160.0,5.22447136]
[1747921204481,0.20004609,111170.0,111160.0,5.20648026]
[1747921204697,0.26684674,111170.0,111160.0,5.01756356]
[1747921204926,0.26684674,111170.0,111160.0,5.20648043]
[1747921205129,0.26684674,111170.0,111160.0,5.01756356]
[1747921205541,0.26684674,111170.0,111160.0,5.19748439]
[1747921205763,0.26684674,111170.0,111160.0,5.20648043]
[1747921205764,0.23504674,111170.0,111160.0,5.20648043]
[1747921205988,0.0131467,111170.0,111160.0,4.3943474]
[1747921206201,0.0131467,111170.0,111160.0,5.2187074]
[1747921206652,0.21104124,111170.0,111160.0,5.2007163]
[1747921206858,0.0131467,111170.0,111160.0,5.2187074]
[1747921207073,0.0221416,111170.0,111160.0,5.2187074]
[1747921207297,0.00415204,111170.0,111160.0,5.2187074]
[1747921208006,0.00415204,111170.0,111160.0,5.5587074]
[1747921209035,0.002,111190.0,111180.0,0.20687074]
[1747921209283,0.002,111190.0,111180.0,4.2667143]
[1747921210448,0.02,111200.0,111190.0,0.20685215]
[1747921210661,0.02,111200.0,111190.0,4.89181571]
[1747921212183,0.02,111200.0,111190.0,5.16137571]
[1747921212439,0.03798439,111200.0,111190.0,4.82237571]
[1747921212644,0.02899207,111200.0,111190.0,4.82237571]
[1747921213310,0.22683387,111200.0,111190.0,4.81326283]
[1747921213531,0.05597056,111200.0,111190.0,5.21037604]
[1747921213752,0.02,111200.0,111190.0,5.21936908]
[1747921213970,0.03798471,111200.0,111190.0,5.21936908]
[1747921214171,0.02,111200.0,111190.0,5.21936908]
[1747921214408,0.23582569,111200.0,111190.0,5.21936908]
[1747921214621,0.04697686,111200.0,111190.0,5.2283622]
[1747921214838,0.02899215,111200.0,111190.0,5.2283622]
[1747921215064,0.02,111200.0,111190.0,5.2283622]
[1747921215982,0.002,111210.0,111200.0,0.20683354]
[1747921216200,0.2177678,111230.0,111220.0,0.20679643]
[1747921216419,0.21827481,111230.0,111220.0,4.70798373]
[1747921216639,0.03846721,111230.0,111220.0,4.71697443]
[1747921216855,0.02947692,111230.0,111220.0,4.81551061]
[1747921217104,0.02048655,111230.0,111220.0,4.81551061]
[1747921217339,0.03846689,111230.0,111220.0,4.81551061]
[1747921217548,0.21827449,111230.0,111220.0,4.80651999]
[1747921217733,0.21827449,111230.0,111220.0,4.79752929]
[1747921218089,0.20928533,111230.0,111220.0,4.51901843]
[1747921218338,0.04158852,111250.0,111230.0,0.19777292]
[1747921218559,0.20675917,111240.0,111230.0,0.03825819]
[1747921218770,0.26147017,111240.0,111230.0,4.898098]
[1747921219188,0.60147017,111240.0,111230.0,0.92792]
[1747921219389,0.60147017,111240.0,111230.0,1.1974]
[1747921219608,0.21580694,111210.0,111200.0,0.19084875]
[1747921219827,0.20681551,111210.0,111200.0,5.17849231]
[1747921220077,0.25023193,111210.0,111200.0,2.61354]
[1747921220253,0.25023193,111210.0,111200.0,1.8328]
[1747921220900,0.25038385,111210.0,111200.0,1.782]
[1747921221097,0.25038385,111210.0,111200.0,1.7397]
[1747921221717,0.59038385,111210.0,111200.0,0.92992]
[1747921221934,0.67992941,111210.0,111200.0,0.92992]
[1747921222143,0.67992941,111210.0,111200.0,1.1994]
[1747921222360,0.69447026,111210.0,111200.0,0.92992]
[1747921222586,0.69447026,111210.0,111200.0,1.1994]
[1747921223223,0.69447026,111210.0,111200.0,1.19944]
[1747921224108,0.69647026,111210.0,111200.0,0.39008]
[1747921224317,0.69647026,111210.0,111200.0,1.19948]
[1747921224519,0.34,111200.0,111180.0,0.002]
[1747921224758,0.70875608,111190.0,111180.0,0.54192]
[1747921224977,0.71594536,111190.0,111180.0,0.54192]
[1747921225183,0.71594536,111190.0,111180.0,0.002]
[1747921225400,0.27393539,111170.0,111160.0,0.93]
[1747921225603,0.36348095,111170.0,111160.0,1.19952]
[1747921226241,0.20696366,111130.0,111120.0,0.18198365]
[1747921226451,0.19796617,111130.0,111120.0,4.900218]
[1747921226658,0.19796617,111130.0,111120.0,1.44358701]
[1747921226874,0.19796617,111130.0,111120.0,1.98358701]
[1747921227094,0.19796617,111130.0,111120.0,1.80680701]
[1747921227317,0.22966576,111130.0,111120.0,0.99728701]
[1747921227545,0.24395999,111150.0,111130.0,0.1799694]
[1747921227749,0.07499515,111170.0,111160.0,0.00899604]
[1747921227977,0.01799264,111150.0,111140.0,0.19794747]
[1747921228181,0.02698892,111150.0,111140.0,4.70820547]
[1747921228392,0.02698908,111150.0,111140.0,4.77975677]
[1747921228595,0.0359856,111150.0,111140.0,4.79775103]
[1747921229035,0.0359856,111150.0,111140.0,4.79825804]
[1747921229235,0.19791217,111160.0,111150.0,0.19793031]
[1747921229453,0.20690813,111160.0,111150.0,3.700698]
[1747921229651,0.18891679,111160.0,111150.0,2.463]
[1747921229856,0.18891679,111160.0,111150.0,2.64293702]
[1747921230063,0.00899547,111160.0,111150.0,2.67892311]
[1747921230268,0.03598268,111160.0,111150.0,2.67896311]
[1747921230696,0.22489947,111160.0,111150.0,2.67896311]
[1747921230896,0.22490004,111160.0,111150.0,2.66996683]
[1747921231299,0.002,111170.0,111160.0,0.20690797]
[1747921231539,0.002,111170.0,111160.0,4.26671153]
[1747921231742,0.02898438,111170.0,111160.0,4.26671169]
[1747921231944,0.02898438,111170.0,111160.0,4.27570716]
[1747921232155,0.20888968,111170.0,111160.0,4.23972439]
[1747921232440,0.0199898,111170.0,111160.0,4.24872026]
[1747921232641,0.2088896,111170.0,111160.0,4.25771605]
[1747921232831,0.2088896,111170.0,111160.0,4.26671176]
[1747921233186,0.2088896,111170.0,111160.0,3.97916026]
[1747921233387,0.19989478,111170.0,111160.0,3.97016439]
[1747921233631,0.18190465,111170.0,111160.0,4.05980356]
[1747921234037,0.002,111170.0,111160.0,4.26671153]
[1747921234240,0.20888976,111170.0,111160.0,3.97925396]
[1747921234450,0.2088896,111170.0,111160.0,4.15917479]
[1747921234652,0.1998947,111170.0,111160.0,4.15917479]
[1747921235133,0.19989437,111170.0,111160.0,4.25771606]
[1747921235386,0.01798762,111180.0,111170.0,0.20687445]
[1747921235606,0.54888078,111190.0,111180.0,0.18888288]
[1747921235829,0.01099329,111190.0,111180.0,4.16813522]
[1747921236040,0.0289797,111190.0,111180.0,4.18612316]
[1747921236254,0.01998617,111190.0,111180.0,4.27566872]
[1747921236470,0.19985911,111190.0,111180.0,4.05980356]
[1747921236912,0.53985911,111190.0,111180.0,0.24800701]
[1747921237124,0.78209885,111190.0,111180.0,0.00050701]
[1747921237360,0.78209885,111190.0,111180.0,0.79566701]
[1747921238014,0.78209885,111190.0,111180.0,0.79766701]
[1747921238235,0.78209885,111190.0,111180.0,0.79566701]
[1747921238668,0.70994552,111190.0,111180.0,0.79566701]
[1747921240442,0.69540467,111190.0,111180.0,0.79566701]
[1747921242702,0.66250467,111190.0,111180.0,0.79566701]
[1747921242921,0.53985911,111190.0,111180.0,4.49636501]
[1747921243358,0.53985911,111190.0,111180.0,1.64520701]
[1747921243575,0.57245911,111190.0,111180.0,1.25900701]
[1747921244904,0.57245911,111190.0,111180.0,1.26000701]
[1747921245122,0.57245911,111190.0,111180.0,1.25900701]
[1747921245335,0.57245911,111190.0,111180.0,1.26000701]
[1747921245604,0.53985911,111190.0,111180.0,1.31000701]
[1747921246096,0.53985911,111190.0,111180.0,1.48989547]
[1747921246347,0.35998633,111190.0,111180.0,1.51687808]
[1747921246574,0.03797323,111190.0,111180.0,1.52587193]
[1747921246766,0.03797307,111190.0,111180.0,1.52587193]
[1747921247262,0.21784593,111190.0,111180.0,1.50788407]
[1747921247489,0.002,111190.0,111180.0,1.64601757]
[1747921247714,0.002,111190.0,111180.0,1.67921757]
[1747921247935,0.003,111210.0,111200.0,0.20683354]
[1747921248158,0.003,111210.0,111200.0,4.2666371]
[1747921248389,0.003,111210.0,111200.0,4.3330371]
[1747921248622,0.01997978,111230.0,111220.0,0.20679635]
[1747921248833,0.002,111230.0,111220.0,5.16571991]
[1747921249296,0.01098965,111230.0,111220.0,5.16571991]
[1747921249484,0.01997954,111230.0,111220.0,5.16571991]
[1747921249825,0.01114162,111230.0,111220.0,5.1820442]
[1747921250052,0.00215197,111230.0,111220.0,5.2150442]
[1747921250878,0.01114162,111230.0,111220.0,5.2150442]
[1747921251309,0.00215197,111230.0,111220.0,5.2160442]
[1747921251513,0.01114162,111230.0,111220.0,4.9464842]
[1747921251708,0.02912148,111230.0,111220.0,5.1829642]
[1747921252388,0.02013143,111230.0,111220.0,4.4024842]
[1747921252587,0.02896523,111250.0,111240.0,0.20675917]
[1747921252841,0.02896523,111250.0,111240.0,4.17693717]
[1747921253050,0.03795326,111250.0,111240.0,4.17693717]
[1747921253275,0.38694202,111250.0,111240.0,4.17693733]
[1747921253483,0.55772927,111250.0,111240.0,4.15895893]
[1747921253685,0.35997663,111250.0,111240.0,4.17693749]
[1747921253872,0.35098803,111250.0,111240.0,4.18592649]
[1747921254107,0.35997622,111250.0,111240.0,4.18592649]
[1747921254314,0.02896038,111270.0,111250.0,0.19773756]
[1747921254485,0.20885539,111270.0,111260.0,4.481018]
[1747921254746,0.01113831,111270.0,111260.0,4.75032268]
[1747921254952,0.01113831,111270.0,111260.0,4.77728557]
[1747921255205,0.00215189,111270.0,111260.0,4.77728557]
[1747921255411,0.18178705,111290.0,111280.0,0.20668485]
[1747921255412,0.002,111290.0,111280.0,0.20668485]
[1747921255622,0.002,111290.0,111280.0,4.56482285]
[1747921255849,0.04220355,111310.0,111290.0,0.21565099]
[1747921256057,0.24000048,111310.0,111300.0,4.67864171]
[1747921256260,0.23101761,111310.0,111300.0,4.480978]
[1747921256479,0.57101761,111310.0,111300.0,4.480978]
[1747921256681,0.23101761,111310.0,111300.0,4.480978]
[1747921257056,0.57101761,111310.0,111300.0,4.480978]
[1747921257257,0.58000088,111310.0,111300.0,4.66067251]
[1747921257427,0.04235485,111310.0,111300.0,4.69661011]
[1747921257652,0.00898246,111320.0,111310.0,0.20662914]
[1747921257852,0.20661034,111320.0,111310.0,3.8893602]
[1747921258052,0.21559402,111320.0,111310.0,3.88037637]
[1747921258226,0.19762837,111320.0,111310.0,3.700698]
[1747921258440,0.53762837,111320.0,111310.0,3.700698]
[1747921258845,0.53762837,111320.0,111310.0,3.502891]
[1747921259274,0.53762837,111320.0,111310.0,4.269091]
[1747921259852,0.53762837,111320.0,111310.0,4.269011]
[1747921260069,0.53862837,111320.0,111310.0,1.3553]
[1747921260368,0.53862837,111320.0,111310.0,2.12142]
[1747921260738,0.64170779,111320.0,111290.0,0.38784]
[1747921260955,0.60116339,111300.0,111290.0,0.38799186]
[1747921261176,0.7052498,111300.0,111290.0,0.65731186]
[1747921261387,0.7052498,111300.0,111290.0,0.38799186]
[1747921261596,0.7052498,111300.0,111290.0,1.15403186]
[1747921262474,0.7052498,111300.0,111290.0,0.38799186]
[1747921262691,0.7052498,111300.0,111290.0,0.65731186]
[1747921263755,0.53766339,111300.0,111290.0,4.16020286]
[1747921264020,0.53766339,111300.0,111290.0,3.89088286]
[1747921264215,0.53966339,111300.0,111290.0,4.65688286]
[1747921264443,0.7071498,111300.0,111290.0,0.38799186]
[1747921264885,0.7071498,111300.0,111290.0,0.65731186]
[1747921265108,0.79667131,111300.0,111290.0,0.38799186]
[1747921265362,0.79667131,111300.0,111290.0,0.65731186]
[1747921266038,0.79667131,111300.0,111290.0,0.00015186]
[1747921266488,0.7171498,111300.0,111290.0,0.00015186]
[1747921267134,0.7151498,111300.0,111290.0,0.00015186]
[1747921267377,0.7171498,111300.0,111290.0,0.00015186]
[1747921267577,0.7171498,111300.0,111290.0,0.26947186]
[1747921267783,0.7051498,111300.0,111290.0,0.26947186]
[1747921267996,0.7151498,111300.0,111290.0,0.26947186]
[1747921268210,0.7071498,111300.0,111290.0,0.26947186]
[1747921268422,0.7171498,111300.0,111290.0,0.26947186]
[1747921268625,0.7071498,111300.0,111290.0,0.26947186]
[1747921269057,0.69260895,111300.0,111290.0,0.26947186]
[1747921269268,0.28920895,111300.0,111290.0,0.26947186]
[1747921269697,0.28687234,111300.0,111290.0,0.26947186]
[1747921269906,0.28687234,111300.0,111290.0,0.00015186]
[1747921270137,0.28687234,111300.0,111290.0,0.76619186]
[1747921270138,0.31787234,111300.0,111290.0,0.76619186]
[1747921270785,0.35067234,111300.0,111290.0,0.76623186]
[1747921270998,0.36521319,111300.0,111290.0,0.76623186]
[1747921271657,0.33241319,111300.0,111290.0,0.76623186]
[1747921271893,0.36471319,111300.0,111290.0,0.76623186]